[Event "USA-ch Women 2024"]
[Site "Saint Louis"]
[Date "2024.10.12"]
[Round "2.1"]
[White "Lee, Alice"]
[Black "Cervantes Landeiro, Thalia"]
[Result "1/2-1/2"]
[ECO "D87"]
[WhiteElo "2395"]
[BlackElo "2302"]
[Annotator "RC"]
[PlyCount "178"]
[EventDate "2024.10.09"]
[EventType "tourn"]
[EventCountry "USA"]
[SourceTitle "playchess.com"]
[Source "ChessBase"]
[SourceQuality "1"]
[TimeControl "40/5400+30:1800+30"]

1. d4 {[%emt 0:00:11]} Nf6 {[%emt 0:00:08]} 2. c4 {[%emt 0:00:09]} g6 {[%emt 0:00:07]} 3. Nc3 {[%emt 0:00:05]} d5 {[%emt 0:00:09]} 4. cxd5 {[%emt 0:00:09]} Nxd5 {[%emt 0:00:08]} 5. e4 {[%emt 0:00:08]} Nxc3 {[%emt 0:00:09]} 6. bxc3 {[%emt 0:00:05]} Bg7 {[%emt 0:00:09]} 7. Bc4 {[%emt 0:00:07]} c5 {[%emt 0:00:21]} 8. Ne2 {[%emt 0:00:11]} O-O {[%emt 0:00:23]} 9. O-O {[%emt 0:00:09]} Nc6 {[%emt 0:00:06]} 10. Be3 {[%emt 0:00:18]} Bg4 {[%emt 0:00:38]} 11. f3 {[%emt 0:00:31]} Bd7 {[%emt 0:00:24]} 12. Bd3 {[%emt 0:05:45]} cxd4 {[%emt 0:09:05]} 13. cxd4 {[%emt 0:00:49]} Nb4 {[%emt 0:01:24]} 14. Rb1 {[%emt 0:17:15]} Nxd3 {[%emt 0:02:36]} 15. Qxd3 {[%emt 0:00:11]} b5 {[%emt 0:07:16]} 16. Qd2 {[%emt 0:06:51]} a6 {[%emt 0:14:46]} 17. d5 {[%emt 0:04:15]} Rc8 {[%emt 0:14:09]} 18. Rfc1 {[%emt 0:01:49]} Be5 {[%emt 0:11:03]} 19. Nd4 {[%emt 0:06:35]} Rc4 {[%emt 0:11:05]} 20. f4 {[%emt 0:05:12]} Bg7 {[%emt 0:01:51]} 21. Rxc4 {[%emt 0:03:05]} bxc4 {[%emt 0:00:07]} 22. Qc2 {[%emt 0:00:14]} Qc7 {[%emt 0:05:59]} 23. Nc6 {[%emt 0:03:14]} Bxc6 {[%emt 0:04:00]} 24. Qxc4 {[%emt 0:00:45]} Rc8 {[%emt 0:00:32]} 25. dxc6 {[%emt 0:17:02]} Qxc6 {[%emt 0:00:17]} 26. Qxc6 {[%emt 0:00:07]} Rxc6 {[%emt 0:00:05]} 27. Rb8+ {[%emt 0:05:09]} Bf8 {[%emt 0:00:07]} 28. Ra8 {[%emt 0:00:23]} f6 {[%emt 0:08:31]} 29. a4 {[%emt 0:01:11]} Kf7 {[%emt 0:01:42]} 30. a5 {[%emt 0:02:56]} e5 {[%emt 0:02:15]} 31. f5 {[%emt 0:04:32]} gxf5 {[%emt 0:01:20]} 32. exf5 {[%emt 0:00:03]} e4 {[%emt 0:01:32]} 33. Ra7+ {[%emt 0:01:12]} Kg8 {[%emt 0:00:11]} 34. Kf2 {[%emt 0:03:16]} Bd6 {[%emt 0:01:58]} 35. Ra8+ {[%emt 0:06:44]} Kg7 {[%emt 0:00:37]} 36. Re8 {[%emt 0:01:44]} Rc2+ {[%emt 0:01:28]} 37. Kf1 {[%emt 0:00:08]} Ra2 {[%emt 0:01:02]} 38. Re6 {[%emt 0:01:33]} Ra1+ {[%emt 0:00:38]} 39. Ke2 {[%emt 0:00:09]} Ra2+ {[%emt 0:00:17]} 40. Kd1 {[%emt 0:01:22]} Bb4 {[%emt 0:01:12]} 41. Rxa6 {[%emt 0:05:28]} Rxa5 {[%emt 0:16:36]} 42. Rxa5 {[%emt 0:00:34]} Bxa5 {[%emt 0:00:01]} 43. Kc2 {[%emt 0:00:09]} Bc7 {[%emt 0:01:17]} 44. h3 {[%emt 0:00:07]} Kf7 {[%emt 0:01:00]} 45. Kc3 {[%emt 0:00:10]} Be5+ {[%emt 0:00:26]} 46. Kc4 {[%emt 0:00:10]} Bg3 {[%emt 0:04:16]} 47. Kd5 {[%emt 0:00:08]} Be5 {[%emt 0:01:31]} 48. Kxe4 {[%emt 0:00:17]} Bg3 {[%emt 0:01:11]} 49. Kf3 {[%emt 0:00:28]} Be5 {[%emt 0:00:36]} 50. Kg4 {[%emt 0:00:12]} Bc3 {[%emt 0:01:50]} 51. Kh5 {[%emt 0:00:11]} Bb4 {[%emt 0:02:23]} 52. Kh6 {[%emt 0:00:25]} Kg8 {[%emt 0:00:05]} 53. Bd4 {[%emt 0:00:50]} Bd2+ {[%emt 0:02:14]} 54. Kh5 {[%emt 0:00:09]} Kf7 {[%emt 0:00:11]} 55. Bb2 {[%emt 0:00:23]} Be3 {[%emt 0:00:12]} 56. Ba1 {[%emt 0:00:33]} Bd2 {[%emt 0:00:13]} 57. Bd4 {[%emt 0:00:08]} Bc1 {[%emt 0:00:27]} 58. Kg4 {[%emt 0:00:08]} Bd2 {[%emt 0:00:29]} 59. Kf3 {[%emt 0:00:08]} Bc1 {[%emt 0:00:46]} 60. Bc3 {[%emt 0:00:20]} Ba3 {[%emt 0:00:45]} 61. Bd2 {[%emt 0:00:22]} Bd6 {[%emt 0:00:36]} 62. Kg4 {[%emt 0:00:15]} Ba3 {[%emt 0:01:00]} 63. Kh5 {[%emt 0:00:09]} Bc5 {[%emt 0:00:31]} 64. Kh6 {[%emt 0:00:21]} Kg8 {[%emt 0:00:04]} 65. Bc1 {[%emt 0:00:11]} Bb4 {[%emt 0:00:43]} 66. Be3 {[%emt 0:00:30]} Ba3 {[%emt 0:00:19]} 67. g3 {[%emt 0:00:34]} Bb4 {[%emt 0:00:53]} 68. g4 {[%emt 0:00:31]} Ba3 {[%emt 0:01:16]} 69. h4 {[%emt 0:00:10]} Bb4 {[%emt 0:01:18]} 70. g5 {[%emt 0:00:39]} Bf8+ {[%emt 0:00:31]} 71. Kh5 {[%emt 0:00:07]} fxg5 {[%emt 0:00:10]} 72. hxg5 {[%emt 0:00:06]} Bb4 {[%emt 0:00:37]} 73. Bd4 {[%emt 0:00:39]} Bf8 {[%emt 0:01:16]} 74. Bb6 {[%emt 0:01:04]} Kf7 {[%emt 0:00:28]} 75. Bd4 {[%emt 0:00:46]} Kg8 {[%emt 0:00:08]} 76. f6 {[%emt 0:01:15]} Kf7 {[%emt 0:00:24]} 77. Bc3 {[%emt 0:00:06]} Bc5 {[%emt 0:00:59]} 78. Kh6 {[%emt 0:00:08]} Be3 {[%emt 0:00:07]} 79. Be5 {[%emt 0:00:10]} Bd2 {[%emt 0:00:18]} 80. Bg3 {[%emt 0:00:11]} Be3 {[%emt 0:01:14]} 81. Bh4 {[%emt 0:00:17]} Kg8 {[%emt 0:00:08]} 82. Kh5 {[%emt 0:00:08]} Kf7 {[%emt 0:00:06]} 83. Be1 {[%emt 0:00:09]} Bd4 {[%emt 0:01:01]} 84. Bh4 {[%emt 0:00:16]} Be3 {[%emt 0:00:14]} 85. Kg4 {[%emt 0:00:35]} h6 {[%emt 0:00:44]} 86. Kf5 {[%emt 0:00:11]} hxg5 {[%emt 0:00:15]} 87. Bxg5 {[%emt 0:00:07]} Bxg5 {[%emt 0:00:08]} 88. Kxg5 {[%emt 0:00:06]} Kf8 {[%emt 0:00:04]} 89. f7 {[%emt 0:00:08]} Kxf7 {[%emt 0:00:05]} 1/2-1/2

[Event "USA-ch Women 2024"]
[Site "Saint Louis"]
[Date "2024.10.12"]
[Round "2.2"]
[White "Abrahamyan, Tatev"]
[Black "Paikidze, Nazi"]
[Result "1-0"]
[ECO "B12"]
[WhiteElo "2327"]
[BlackElo "2314"]
[Annotator "RC"]
[PlyCount "111"]
[EventDate "2024.10.09"]
[EventType "tourn"]
[EventCountry "USA"]
[SourceTitle "playchess.com"]
[Source "ChessBase"]
[SourceQuality "1"]
[TimeControl "40/5400+30:1800+30"]

1. e4 {[%emt 0:00:03]} c6 {[%emt 0:00:05]} 2. d4 {[%emt 0:00:05]} d5 {[%emt 0:00:06]} 3. e5 {[%emt 0:00:07]} Bf5 {[%emt 0:00:06]} 4. c4 {[%emt 0:00:05]} e6 {[%emt 0:00:08]} 5. Nc3 {[%emt 0:00:06]} Ne7 {[%emt 0:01:30]} 6. Nge2 {[%emt 0:00:40]} h6 {[%emt 0:10:27]} 7. Ng3 {[%emt 0:06:04]} Bh7 {[%emt 0:03:19]} 8. h4 {[%emt 0:05:10]} Nd7 {[%emt 0:08:42]} 9. cxd5 {[%emt 0:03:36]} Nxd5 {[%emt 0:00:21]} 10. Nxd5 {[%emt 0:00:06]} cxd5 {[%emt 0:00:12]} 11. Bd3 {[%emt 0:00:05]} Bb4+ {[%emt 0:04:04]} 12. Kf1 {[%emt 0:00:06]} Bxd3+ {[%emt 0:05:57]} 13. Qxd3 {[%emt 0:00:13]} Qb6 {[%emt 0:00:06]} 14. h5 {[%emt 0:14:07]} O-O {[%emt 0:09:46]} 15. Ne2 {[%emt 0:10:23]} Qa6 {[%emt 0:03:52]} 16. Qxa6 {[%emt 0:16:15]} bxa6 {[%emt 0:00:09]} 17. Nf4 {[%emt 0:00:25]} Rfc8 {[%emt 0:01:31]} 18. Nd3 {[%emt 0:02:53]} Ba5 {[%emt 0:13:22]} 19. Ke2 {[%emt 0:10:50]} Rc2+ {[%emt 0:05:36]} 20. Kd1 {[%emt 0:03:07]} Rc4 {[%emt 0:00:25]} 21. Be3 {[%emt 0:01:22]} Bb6 {[%emt 0:00:04]} 22. Rh4 {[%emt 0:10:24]} Rac8 {[%emt 0:05:20]} 23. Rc1 {[%emt 0:01:19]} Bd8 {[%emt 0:02:31]} 24. Rh3 {[%emt 0:02:32]} Be7 {[%emt 0:07:13]} 25. b3 {[%emt 0:02:34]} Rxc1+ {[%emt 0:00:08]} 26. Bxc1 {[%emt 0:00:50]} a5 {[%emt 0:01:05]} 27. g4 {[%emt 0:02:50]} a4 {[%emt 0:00:34]} 28. Bd2 {[%emt 0:00:29]} Nb8 {[%emt 0:06:44]} 29. f4 {[%emt 0:02:29]} Nc6 {[%emt 0:01:02]} 30. Bc3 {[%emt 0:01:02]} a3 {[%emt 0:02:31]} 31. f5 {[%emt 0:02:52]} Bg5 {[%emt 0:01:20]} 32. b4 {[%emt 0:01:01]} exf5 {[%emt 0:02:26]} 33. gxf5 {[%emt 0:00:04]} Ne7 {[%emt 0:00:02]} 34. Nc5 {[%emt 0:01:50]} Nxf5 {[%emt 0:00:05]} 35. Ke2 {[%emt 0:00:19]} Be7 {[%emt 0:02:58]} 36. Ba1 {[%emt 0:00:40]} Rb8 {[%emt 0:01:11]} 37. Rxa3 {[%emt 0:00:50]} Rxb4 {[%emt 0:00:15]} 38. Rxa7 {[%emt 0:00:21]} Bxc5 {[%emt 0:01:14]} 39. dxc5 {[%emt 0:00:02]} Rc4 {[%emt 0:00:58]} 40. Ra8+ {[%emt 0:01:32]} Kh7 {[%emt 0:00:03]} 41. Rf8 {[%emt 0:06:05]} Rc1 {[%emt 0:05:20]} 42. Bb2 {[%emt 0:17:33]} Rc2+ {[%emt 0:02:14]} 43. Kd3 {[%emt 0:00:05]} Rxb2 {[%emt 0:00:05]} 44. Rxf7 {[%emt 0:00:03]} Ng3 {[%emt 0:00:35]} 45. c6 {[%emt 0:02:06]} Rb8 {[%emt 0:03:55]} 46. c7 {[%emt 0:01:52]} Rc8 {[%emt 0:00:52]} 47. Kd4 {[%emt 0:00:32]} Nxh5 {[%emt 0:15:38]} 48. Kxd5 {[%emt 0:00:06]} Kg6 {[%emt 0:00:34]} 49. Rd7 {[%emt 0:01:05]} Nf4+ {[%emt 0:01:34]} 50. Kd6 {[%emt 0:03:26]} h5 {[%emt 0:03:56]} 51. e6 {[%emt 0:00:38]} Nxe6 {[%emt 0:00:57]} 52. Kxe6 {[%emt 0:00:03]} h4 {[%emt 0:01:29]} 53. Kd6 {[%emt 0:00:42]} h3 {[%emt 0:00:42]} 54. Re7 {[%emt 0:01:42]} Kf6 {[%emt 0:01:25]} 55. Re3 {[%emt 0:00:34]} Rh8 {[%emt 0:00:45]} 56. Rf3+ {[%emt 0:00:09]} 1-0

[Event "USA-ch Women 2024"]
[Site "Saint Louis"]
[Date "2024.10.12"]
[Round "2.3"]
[White "Atwell, Rose"]
[Black "Yip, Carissa"]
[Result "0-1"]
[ECO "A11"]
[WhiteElo "2185"]
[BlackElo "2418"]
[Annotator "TA"]
[PlyCount "58"]
[EventDate "2024.10.09"]
[EventType "tourn"]
[EventCountry "USA"]
[SourceTitle "playchess.com"]
[Source "ChessBase"]
[SourceQuality "1"]
[TimeControl "40/5400+30:1800+30"]

{[%evp 14,58,16,12,16,21,31,16,40,21,16,18,16,16,21,0,34,27,20,31,33,12,52,56,54,58,35,36,46,-247,-185,-346,-305,-551,-518,-638,-641,-650,-635,-683,-669,-656,-429,-561,-508,-670,-659]} 1. Nf3 {[%emt 0:02:19]} Nf6 {[%emt 0:02:53]} 2. b3 {[%emt 0:00:00]} g6 {[%emt 0:00:38]} 3. Bb2 {[%emt 0:00:00]} Bg7 {[%emt 0:00:43]} 4. g3 {[%emt 0:03:00]} O-O {[%emt 0:02:39]} 5. Bg2 {[%emt 0:02:00]} a5 {[%cal Ba7a5,Ba5a4][%mdl 32]} 6. O-O {[%emt 0:13:25]} d5 {[%emt 0:09:10]} 7. c4 {[%emt 0:00:00]} c6 {[%emt 0:01:19]} 8. d3 {[%emt 0:01:11]} Nbd7 {[%emt 0:01:41]} 9. cxd5 {[%emt 0:02:34]} cxd5 {[%emt 0:01:08]} 10. Na3 {[%emt 0:09:04]} a4 {[%emt 0:01:03] The position is equal.} 11. b4 {[%emt 0:03:01]} Re8 {[%emt 0:04:50]} 12. Rc1 {[%emt 0:02:11]} Qb6 {[%emt 0:04:12] Repels Nb5} 13. Qd2 {[%emt 0:04:13]} e5 {[%emt 0:02:57][%cal Be7e5,Be5e4][%mdl 32] Prevents Bd4} 14. Nc2 {[%emt 0:07:14]} e4 {[%emt 0:08:37]} 15. Nfd4 {[%emt 0:04:24]} Ne5 {[%emt 0:01:34]} 16. Ne3 {[%emt 0:01:59]} Bd7 {[%emt 0:02:29]} 17. Rc5 {[%emt 0:11:36]} a3 {[%emt 0:04:00]} 18. Ba1 {[%emt 0:00:00]} Qd6 {[%emt 0:10:56]} 19. Nb5 {[%emt 0:00:00]} Bxb5 {[%emt 0:00:09]} 20. Rxb5 {[%emt 0:00:20] dxe4 is the strong threat.} Qd7 {[%emt 0:02:07]} 21. Rb6 {[%emt 0:04:42][%mdl 8192] [#] This move loses the game for White.} (21. Rc5 $14 {stays ahead.}) 21... d4 $36 {[%emt 0:04:41][%mdl 2048] Keeping White busy.} 22. Nc2 {[%emt 0:05:04]} (22. Rxf6 {is the only way for White.} dxe3 (22... Bxf6 $2 23. Nc2 $19) 23. fxe3 Bxf6 (23... exd3 24. Bxe5 Rxe5 25. Rxf7 $18) 24. Rxf6 exd3 25. exd3) 22... Nd5 {[%emt 0:00:54]} 23. Bxd4 {[%emt 0:00:08]} (23. Rxb7 Qxb7 24. Bxe4) 23... Nxb6 {[%emt 0:00:00] Black is clearly winning.} 24. Bxb6 {[%emt 0:00:05]} Nc4 {[%emt 0:03:08] Prevents Be3.} 25. Bh3 {[%emt 0:04:06]} f5 {[%emt 0:00:00]} 26. Qf4 {[%emt 0:02:29]} Nxb6 {[%emt 0:00:00]} 27. dxe4 {[%emt 0:00:52]} Be5 {[%emt 0:01:03]} 28. Qg5 {[%emt 0:02:32]} Qd8 {[%emt 0:02:01]} 29. Qh6 {[%emt 0:00:42]} Bg7 {[%emt 0:03:13] Weighted Error Value: White=0.66/Black=0.23 (precise) .  Loses game:     	White=1     	---        Mistake:       	White=2     	---        Inaccurate:     	White=1     	Black=2      OK:         	White=4     	Black=8      Best:        	---       	Black=4} 0-1

[Event "USA-ch Women 2024"]
[Site "Saint Louis"]
[Date "2024.10.12"]
[Round "2.4"]
[White "Krush, Irina"]
[Black "Lee, Megan"]
[Result "1-0"]
[ECO "D91"]
[WhiteElo "2388"]
[BlackElo "2253"]
[Annotator "TA"]
[PlyCount "143"]
[EventDate "2024.10.09"]
[EventType "tourn"]
[EventCountry "USA"]
[SourceTitle "playchess.com"]
[Source "ChessBase"]
[SourceQuality "1"]
[TimeControl "40/5400+30:1800+30"]

{[%evp 46,143,79,45,155,162,135,64,60,52,50,40,56,50,56,10,28,0,0,0,25,0,0,0,17,9,81,0,0,0,0,-98,-123,-115,0,0,0,0,0,0,0,0,0,0,0,0,0,0,0,0,0,0,0,0,0,0,6,-9,-15,-32,0,0,0,-8,0,0,0,0,564,0,0,8,8,8,411,8,177,191,867,834,1000,964,2179,1964,2384,2062,2153,1954,1490,1105,1321,1316,5438,5172,2845,9187,29983,29984,29989,29990]} 1. c4 {[%emt 0:00:05]} g6 {[%emt 0:00:04]} 2. d4 {[%emt 0:01:06]} Nf6 {[%emt 0:00:05]} 3. Nc3 {[%emt 0:00:15]} d5 {[%emt 0:00:03]} 4. Nf3 {[%emt 0:05:34]} Bg7 {[%emt 0:00:17]} 5. Bg5 {[%emt 0:00:22]} Ne4 {[%emt 0:01:36]} 6. cxd5 {[%emt 0:03:02]} Nxg5 {[%emt 0:02:12]} 7. Nxg5 {[%emt 0:00:22]} e6 {[%emt 0:00:32]} 8. Nf3 {[%emt 0:00:20]} exd5 {[%emt 0:00:11]} 9. e3 {[%emt 0:00:06]} O-O {[%emt 0:03:31]} 10. Be2 {[%emt 0:02:02]} c6 {[%emt 0:04:49]} 11. O-O {[%emt 0:01:23]} Re8 {[%emt 0:04:43] D91: Grünfeld: 4 Nf3 Bg7 5 Bg5.} 12. Rc1 {[%emt 0:15:35]} Qd6 {[%emt 0:07:40]} 13. Na4 {[%emt 0:01:02]} b6 $146 {[%emt 0:05:48]} ({Predecessor:} 13... Nd7 14. Qc2 Nf6 15. Ne5 Bf5 16. Nd3 Nd7 17. Nac5 Nxc5 18. Qxc5 Qxc5 19. Nxc5 Bxd4 20. Nxb7 Bxb2 21. Rxc6 {0-1 Trevelyan,J (2138)-Mayhew,A (2089) BCF-chT2a 1314 (4NCL) 2013 (5.23)}) 14. a3 {[%emt 0:06:36]} Nd7 {[%emt 0:04:36]} 15. Qc2 {[%emt 0:07:26]} Bb7 {[%emt 0:01:25]} 16. Rfd1 {[%emt 0:00:02]} Rac8 {[%emt 0:08:12]} 17. b4 {[%emt 0:02:22]} f5 {[%emt 0:06:04]} 18. g3 {[%emt 0:04:14]} Nf6 {[%emt 0:05:03]} 19. Nb2 {[%emt 0:13:59]} Ng4 {[%emt 0:03:39]} 20. Nd3 {[%emt 0:04:16]} Ba6 {[%emt 0:04:15]} 21. Nf4 {[%emt 0:00:21]} Bxe2 {[%emt 0:02:31]} 22. Qxe2 {[%emt 0:00:03]} Bh6 {[%emt 0:01:42]} 23. Qd3 {[%emt 0:09:13]} Re4 {[%emt 0:06:41]} 24. b5 {[%emt 0:05:03]} g5 {[%emt 0:04:38]} ({Black should try} 24... Ree8 $14) 25. Ng2 $16 {[%emt 0:00:30]} f4 {[%emt 0:01:28]} 26. exf4 {[%emt 0:05:35]} (26. h3 $16 Nxf2 27. Kxf2) 26... gxf4 $14 {[%emt 0:00:28]} 27. Rxc6 {[%emt 0:00:22]} (27. Rc2 {looks sharper.} fxg3 28. hxg3 Qf6 29. Rf1) 27... Rxc6 {[%emt 0:00:33]} 28. bxc6 {[%emt 0:00:03]} fxg3 $1 {[%emt 0:01:55]} 29. hxg3 {[%emt 0:00:54]} Qxc6 {[%emt 0:00:25]} 30. Nd2 {[%emt 0:05:23]} (30. Nfh4 $14 {might be stronger.} Qe6 31. Qa6 (31. f3 Be3+ 32. Nxe3 Rxe3 $14)) 30... Re7 {[%emt 0:02:17]} 31. Qf3 {[%emt 0:02:14]} Qd7 $1 {[%emt 0:02:01]} 32. Qd3 $1 {[%emt 0:00:16]} Rf7 {[%emt 0:07:38]} 33. f3 {[%emt 0:00:37]} Nf6 {[%emt 0:01:07]} 34. Nf1 {[%emt 0:02:11]} Nh5 {[%emt 0:01:57]} 35. Re1 {[%emt 0:01:09]} Bg7 {[%emt 0:01:21]} (35... Qd6 $11 {keeps the balance.}) 36. Kh2 {[%emt 0:03:05]} (36. g4 $16 Nf4 37. Nxf4 Rxf4 38. Ng3 Bxd4+ (38... Rxd4 39. Qe3 $16) 39. Kg2) 36... Qa4 $11 {[%emt 0:01:15]} 37. Qe3 {[%emt 0:00:42]} Qxd4 {[%emt 0:00:49]} 38. Qe8+ {[%emt 0:00:04]} (38. Qg5 $1 $11 {remains equal.} Nf6 39. Nfe3) 38... Bf8 $17 {[%emt 0:00:14]} 39. Nfe3 {[%emt 0:00:36]} Nf6 {[%emt 0:03:53]} ({Better is} 39... Ng7 $17 40. Qd8 Ne6 (40... Rxf3 41. Nxd5 Qf2 42. Qh4 $17)) 40. Qe6 $11 {[%emt 0:00:22]} Nd7 {[%emt 0:02:08]} (40... Bxa3 $2 {perishes.} 41. Nf5 Qd2 42. Ra1 $18) 41. Nxd5 {[%emt 0:05:34]} Nc5 {[%emt 0:06:06]} 42. Qc6 {[%emt 0:01:03]} Rf5 {[%emt 0:06:47]} 43. Ndf4 {[%emt 0:03:56]} Rf6 {[%emt 0:01:21]} 44. Qe8 {[%emt 0:09:54]} Rh6+ {[%emt 0:01:09]} 45. Nh5 {[%emt 0:00:14]} Qd7 {[%emt 0:02:23]} 46. g4 {[%emt 0:01:13]} Qxe8 {[%emt 0:06:18]} 47. Rxe8 {[%emt 0:00:02]} Rd6 {[%emt 0:03:27]} 48. Nh4 {[%emt 0:06:10]} Rd2+ {[%emt 0:01:15]} 49. Kh3 {[%emt 0:01:18]} Rd3 {[%emt 0:01:54]} 50. g5 {[%emt 0:00:56]} Kf7 {[%emt 0:00:46]} 51. Ra8 {[%emt 0:03:23]} Rxa3 {[%emt 0:00:46]} 52. Kg4 {[%emt 0:00:17]} Nd7 {[%emt 0:00:38]} 53. f4 {[%emt 0:00:28]} b5 {[%emt 0:01:01]} 54. Rc8 {[%emt 0:01:29]} b4 {[%emt 0:00:45]} 55. Rc7 {[%emt 0:00:32]} Ke6 {[%emt 0:00:28]} 56. Nf5 {[%emt 0:01:01]} Nc5 $2 {[%emt 0:02:52][%mdl 8192]} (56... Rd3 $11 57. Rxa7 b3) 57. Rxh7 $2 {[%emt 0:01:01]} (57. Nf6 $1 $18) 57... b3 {[%emt 0:00:14]} 58. Nd4+ {[%emt 0:00:19]} Kd5 {[%emt 0:00:17]} 59. Nxb3 $1 {[%emt 0:00:15]} Nxb3 $2 {[%emt 0:00:31][%mdl 8192] [#]} (59... Rxb3 $11 60. Rf7 (60. Rxa7 Rb1 $17) 60... Rb8) 60. g6 $2 {[%emt 0:01:08]} (60. Rf7 $1 $18 {[%cal Rf7f8]}) 60... Nc5 $2 {[%emt 0:01:06] [#]} (60... Ra1 $11 {and Black stays safe.}) 61. Rh8 $1 $18 {[%emt 0:00:26]} ({Stronger than} 61. Nf6+ Ke6 62. Rf7 Bh6 $11) 61... Ne6 $2 {[%emt 0:00:37]} (61... Ra6) 62. Rxf8 $18 {[%emt 0:00:07]} Ra1 {[%emt 0:00:30]} 63. Rf7 {[%emt 0:01:15]} a5 {[%emt 0:00:25]} 64. f5 {[%emt 0:00:45]} Ra4+ {[%emt 0:00:30]} 65. Kg3 {[%emt 0:00:21]} Ra3+ {[%emt 0:00:11]} 66. Kf2 {[%emt 0:00:13]} Ra2+ {[%emt 0:00:34]} 67. Ke1 {[%emt 0:00:14]} Ra1+ {[%emt 0:00:39]} 68. Kd2 {[%emt 0:00:06]} Ra2+ {[%emt 0:00:13]} 69. Kc3 {[%emt 0:00:41]} Nc5 {[%emt 0:00:46]} 70. g7 {[%emt 0:00:31]} Ne4+ {[%emt 0:00:37]} 71. Kb3 {[%emt 0:00:45]} Rg2 {[%emt 0:00:22]} 72. Nf4+ {[%emt 0:00:16]} 1-0